bitfinex/quotes_SOLUSD_20240713
["timestamp","ask_amount","ask_price","bid_price","bid_amount"]
[1720830549644,76.56,139.24,139.23,6.44420847]
[1720830550423,20.0,139.24,139.23,6.44420847]
[1720830551217,12.8916733,139.28,139.23,6.44420847]
[1720830551421,11.56,139.26,139.25,6.44420847]
[1720830551613,31.56,139.26,139.23,11.47180847]
[1720830551842,20.0,139.25,139.23,6.44420847]
[1720830552640,31.56,139.25,139.23,6.44420847]
[1720830552843,11.56,139.25,139.23,6.44420847]
[1720830553024,34.81016147,139.29,139.23,6.44420847]
[1720830553214,11.56,139.27,139.25,6.44420847]
[1720830560939,11.56,139.26,139.25,6.44420847]
[1720830565057,56.56,139.26,139.25,6.44420847]
[1720830565428,45.0,139.26,139.25,6.44420847]
[1720830565633,56.56,139.26,139.25,6.44420847]
[1720830565836,45.0,139.26,139.25,6.44420847]
[1720830566051,56.56,139.26,139.25,6.44420847]
[1720830566551,45.0,139.26,139.25,6.44420847]
[1720830566942,11.56,139.27,139.25,11.47100847]
[1720830567142,11.56,139.27,139.25,6.44420847]
[1720830568752,10.0,139.28,139.25,6.44420847]
[1720830568941,56.56,139.27,139.25,6.44420847]
[1720830569557,45.0,139.27,139.25,6.44420847]
[1720830569753,56.56,139.27,139.25,6.44420847]
[1720830571457,56.56,139.27,139.25,11.47100847]
[1720830571647,11.56,139.28,139.27,6.44420847]
[1720830571962,76.56,139.28,139.27,6.44420847]
[1720830573340,81.5858,139.28,139.27,6.44420847]
[1720830574476,45.0,139.28,139.27,6.44420847]
[1720830574765,16.5855,139.29,139.27,6.44420847]
[1720830575363,5.0251,139.3,139.27,6.44420847]
[1720830575537,16.5851,139.3,139.29,6.44420847]
[1720830575737,81.5851,139.3,139.29,6.44420847]
[1720830577939,5.0251,139.3,139.29,6.44420847]
[1720830578140,5.0251,139.3,139.27,11.47030847]
[1720830578437,16.5851,139.3,139.27,6.44420847]
[1720830579260,16.5851,139.3,139.29,6.44420847]
[1720830581141,11.56,139.31,139.29,6.44420847]
[1720830581751,16.5847,139.31,139.29,6.44420847]
[1720830583547,7.9158733,139.33,139.29,11.46960847]
[1720830583749,11.56,139.31,139.3,6.44420847]
[1720830584050,56.56,139.31,139.3,6.44420847]
[1720830584665,61.5847,139.31,139.3,6.44420847]
[1720830586362,50.0247,139.31,139.3,6.44420847]
[1720830586540,5.0247,139.31,139.3,6.44420847]
[1720830587567,50.0247,139.31,139.3,6.44420847]
[1720830588369,45.0,139.31,139.3,6.44420847]
[1720830588565,16.5843,139.33,139.3,6.44420847]
[1720830588760,16.5843,139.33,139.32,6.44420847]
[1720830589073,36.5843,139.33,139.32,6.44420847]
[1720830589951,81.5843,139.33,139.32,6.44420847]
[1720830593976,70.0243,139.33,139.32,6.44420847]
[1720830594277,65.0,139.33,139.32,6.44420847]
[1720830595461,7.49488673,139.37,139.32,6.44420847]
[1720830595462,5.0234,139.35,139.32,6.44420847]
[1720830595656,26.5572,139.38,139.32,11.46850847]
[1720830595863,16.5833,139.35,139.32,6.44420847]
[1720830596075,16.5833,139.35,139.34,6.44420847]
[1720830596257,61.5833,139.35,139.34,6.44420847]
[1720830599778,45.0,139.35,139.34,6.44420847]
[1720830599983,15.0224,139.38,139.36,6.44420847]
[1720830600158,70.0226,139.37,139.36,6.44420847]
[1720830600357,5.0223,139.38,139.34,11.46780847]
[1720830600554,16.5823,139.38,139.36,6.44420847]
[1720830601484,5.0226,139.37,139.36,6.44420847]
[1720830602287,5.0223,139.38,139.36,6.44420847]
[1720830602454,16.5823,139.38,139.36,6.44420847]
[1720830603159,5.022,139.39,139.38,6.44420847]
[1720830603362,5.022,139.39,139.35,5.0233]
[1720830603363,81.582,139.39,139.36,6.44420847]
[1720830603665,11.56,139.38,139.36,6.44420847]
[1720830605365,16.5826,139.37,139.36,6.44420847]
[1720830605669,61.5826,139.37,139.36,6.44420847]
[1720830606068,56.56,139.37,139.36,6.44420847]
[1720830606386,56.56,139.37,139.34,6.44420847]
[1720830606560,16.5835,139.35,139.31,11.46880847]
[1720830606879,16.5835,139.35,139.2,61.24]
[1720830606880,16.5844,139.32,139.28,11.46990847]
[1720830607085,11.56,139.32,139.28,6.44420847]
[1720830607271,45.0,139.31,139.28,11.46980847]
[1720830607874,45.0,139.31,139.3,6.44420847]
[1720830610087,11.56,139.33,139.32,6.44420847]
[1720830610289,76.56,139.33,139.3,11.46920847]
[1720830610471,45.0,139.32,139.3,11.46920847]
[1720830611108,45.0,139.32,139.3,6.44420847]
[1720830612890,16.5841,139.33,139.3,6.44420847]
[1720830613097,16.5841,139.33,139.32,6.44420847]
[1720830613275,81.5841,139.33,139.32,6.44420847]
[1720830613798,5.0247,139.31,139.3,6.44420847]
[1720830614102,5.0245,139.32,139.3,6.44420847]
[1720830614787,5.0247,139.31,139.3,6.44420847]
[1720830614997,50.0247,139.31,139.3,6.44420847]
[1720830615483,5.0247,139.31,139.3,6.44420847]
[1720830616696,5.0244,139.32,139.3,6.44420847]
[1720830616880,16.5844,139.32,139.3,6.44420847]
[1720830623401,5.0247,139.31,139.3,6.44420847]
[1720830624597,16.5845,139.32,139.3,6.44420847]
[1720830624771,5.0247,139.31,139.3,6.44420847]
[1720830624972,61.5847,139.31,139.3,6.44420847]
[1720830625373,5.0251,139.3,139.28,6.44420847]
[1720830625599,11.56,139.3,139.28,6.44420847]
[1720830627982,11.56,139.3,139.28,11.46990847]
[1720830628173,45.0,139.31,139.3,6.44420847]
[1720830630709,25.0241,139.33,139.3,6.44420847]
[1720830630900,45.0,139.32,139.3,6.44420847]
[1720830631903,50.0245,139.32,139.3,6.44420847]
[1720830632092,61.5845,139.32,139.3,6.44420847]
[1720830632403,16.5847,139.31,139.3,6.44420847]
[1720830632609,61.5847,139.31,139.3,6.44420847]
[1720830635694,56.56,139.31,139.3,6.44420847]
[1720830637801,45.0,139.31,139.3,6.44420847]
[1720830641691,16.5844,139.32,139.3,6.44420847]
[1720830641888,17.50516845,139.35,139.32,6.44420847]
[1720830642192,5.0235,139.35,139.34,6.44420847]
[1720830642391,36.5835,139.35,139.31,6.44420847]
[1720830642793,25.0235,139.35,139.33,6.44420847]
[1720830642994,36.5835,139.35,139.33,6.44420847]
[1720830643393,61.5836,139.34,139.33,6.44420847]
[1720830643886,61.5836,139.34,139.3,6.44420847]
[1720830643887,5.0244,139.32,139.3,6.44420847]
[1720830644092,16.5844,139.32,139.3,6.44420847]
[1720830644906,11.56,139.31,139.3,6.44420847]
[1720830645097,61.5847,139.31,139.3,6.44420847]
[1720830648196,56.56,139.31,139.3,6.44420847]
[1720830648392,45.0,139.31,139.3,6.44420847]
[1720830649318,61.5847,139.31,139.3,6.44420847]
[1720830649616,56.56,139.31,139.3,6.44420847]
[1720830655996,30.0,139.35,139.3,6.44420847]
[1720830655997,5.0241,139.33,139.3,6.44420847]
[1720830656197,56.56,139.32,139.3,6.44420847]
[1720830656718,45.0,139.32,139.3,6.44420847]
[1720830657724,16.5838,139.34,139.32,6.44420847]
[1720830658212,16.5838,139.34,139.33,6.44420847]
[1720830658410,20.0,139.34,139.33,6.44420847]
[1720830658611,25.0236,139.34,139.33,6.44420847]
[1720830658822,25.0236,139.34,139.3,11.46920847]
[1720830659121,25.0236,139.34,139.32,6.44420847]
[1720830661127,5.024,139.33,139.32,6.44420847]
[1720830661332,5.0247,139.31,139.3,6.44420847]
[1720830661520,66.56,139.31,139.25,21.90690847]
[1720830661724,16.586,139.28,139.25,6.44420847]
[1720830661901,11.56,139.27,139.25,6.44420847]
[1720830662228,16.5864,139.27,139.25,6.44420847]
[1720830662603,11.56,139.27,139.25,6.44420847]
[1720830664101,11.56,139.27,139.25,11.47100847]
[1720830664296,5.0255,139.29,139.27,6.44420847]
[1720830664297,11.56,139.28,139.27,6.44420847]
[1720830664506,66.56,139.28,139.25,6.44420847]
[1720830664723,45.0,139.27,139.25,6.44420847]
[1720830664912,11.56,139.26,139.25,6.44420847]
[1720830665208,56.56,139.26,139.25,6.44420847]
[1720830666806,61.5865,139.26,139.25,6.44420847]
[1720830669328,56.56,139.26,139.25,6.44420847]
[1720830670136,45.0,139.26,139.25,6.44420847]
[1720830670312,56.56,139.26,139.25,6.44420847]
[1720830670936,61.5865,139.26,139.25,6.44420847]
[1720830671543,56.56,139.26,139.25,6.44420847]
[1720830671842,61.5865,139.26,139.25,6.44420847]
[1720830677344,11.56,139.31,139.29,6.44420847]
[1720830677636,16.585,139.31,139.29,6.44420847]
[1720830678642,5.0251,139.3,139.29,6.44420847]
[1720830679018,16.5851,139.3,139.29,6.44420847]
[1720830680046,61.5851,139.3,139.29,6.44420847]
[1720830686762,50.0251,139.3,139.29,6.44420847]
[1720830686932,61.5851,139.3,139.29,6.44420847]
[1720830691657,50.0251,139.3,139.29,6.44420847]
[1720830693282,5.0258,139.28,139.27,6.44420847]
[1720830693575,16.5858,139.28,139.27,6.44420847]
[1720830693740,56.56,139.28,139.27,6.44420847]
[1720830695048,45.0,139.28,139.27,6.44420847]
[1720830695238,11.56,139.3,139.27,6.44420847]
[1720830695438,45.0,139.29,139.27,6.44420847]
[1720830697444,56.56,139.29,139.27,6.44420847]
[1720830701243,45.0,139.29,139.27,6.44420847]
[1720830701548,56.56,139.29,139.27,6.44420847]
[1720830701971,56.56,139.29,139.25,5.0268]
[1720830701972,10.0,139.28,139.25,6.44420847]
[1720830702143,21.56,139.26,139.21,6.44420847]
[1720830702457,21.56,139.26,139.24,6.44420847]
[1720830702666,45.0,139.25,139.24,6.44420847]
[1720830703575,56.56,139.25,139.24,6.44420847]
[1720830704068,45.0,139.25,139.24,6.44420847]
[1720830704243,56.56,139.25,139.24,6.44420847]
[1720830709276,56.56,139.25,139.22,6.44420847]
[1720830709445,11.56,139.23,139.22,6.44420847]
[1720830709645,56.56,139.23,139.22,6.44420847]
[1720830710747,45.0,139.23,139.22,6.44420847]
[1720830712084,30.0,139.28,139.24,6.44420847]
[1720830712274,11.56,139.25,139.22,6.44420847]
[1720830712566,20.0,139.28,139.24,6.44420847]
[1720830712867,31.56,139.28,139.27,6.44420847]
[1720830713246,11.56,139.28,139.25,11.47100847]
[1720830713474,10.0,139.3,139.27,6.44420847]
[1720830713653,11.56,139.28,139.27,6.44420847]
[1720830714167,56.56,139.28,139.27,6.44420847]
[1720830714671,66.56,139.28,139.27,6.44420847]
[1720830714873,56.56,139.28,139.27,6.44420847]
[1720830716670,66.56,139.28,139.25,6.44420847]
[1720830716871,11.56,139.26,139.25,6.44420847]
[1720830717085,56.56,139.26,139.23,6.44420847]
[1720830717263,11.56,139.25,139.23,6.44420847]
[1720830720670,45.0,139.24,139.23,6.44420847]
[1720830721859,45.0,139.24,139.21,11.47250847]
[1720830722065,56.56,139.25,139.23,6.44420847]
[1720830722380,66.56,139.25,139.23,6.44420847]
[1720830722575,11.56,139.24,139.23,6.44420847]
[1720830722752,56.56,139.25,139.23,6.44420847]
[1720830723153,10.0,139.23,139.18,6.44420847]
[1720830723370,11.56,139.2,139.18,6.44420847]
[1720830723771,11.56,139.19,139.18,6.44420847]
[1720830723975,56.56,139.19,139.16,16.1145]
[1720830724182,11.56,139.18,139.16,16.1145]
[1720830724565,11.56,139.18,139.15,6.44420847]
[1720830724766,11.56,139.16,139.13,11.47540847]
[1720830725068,11.56,139.15,139.13,11.47540847]
[1720830725793,11.56,139.15,139.13,6.44420847]
[1720830726779,26.0529,139.16,139.1,6.44420847]
[1720830727113,11.56,139.12,139.1,6.44420847]
[1720830727389,11.56,139.11,139.08,6.44420847]
[1720830727599,56.56,139.1,139.08,5.033]
[1720830727894,26.0529,139.16,139.1,6.44420847]
[1720830728100,65.0,139.15,139.1,11.47650847]
[1720830728271,65.0,139.15,139.11,5.0317]
[1720830728466,65.0,139.15,139.1,6.44420847]
[1720830728467,11.56,139.14,139.1,11.47650847]
[1720830728790,45.0,139.13,139.1,6.44420847]
[1720830728988,11.56,139.13,139.1,6.44420847]
[1720830729193,45.0,139.12,139.1,6.44420847]
[1720830729372,11.56,139.13,139.1,6.44420847]
[1720830732277,11.56,139.12,139.1,6.44420847]
[1720830732477,10.0,139.14,139.1,6.44420847]
[1720830732773,11.56,139.12,139.1,6.44420847]
[1720830732977,10.0,139.14,139.1,6.44420847]
[1720830733185,11.56,139.12,139.1,6.44420847]
[1720830735977,11.56,139.11,139.1,6.44420847]
[1720830736380,56.56,139.11,139.08,6.44420847]
[1720830736682,11.56,139.09,139.06,6.44420847]
[1720830737002,11.56,139.08,139.06,6.44420847]
[1720830738287,11.56,139.09,139.06,11.47780847]
[1720830738877,16.0529,139.13,139.07,5.0333]
[1720830739097,11.56,139.11,139.09,6.44420847]
[1720830739401,11.56,139.1,139.09,6.44420847]
[1720830739588,56.56,139.1,139.09,6.44420847]
[1720830739787,20.0,139.12,139.09,6.44420847]
[1720830740002,20.0,139.13,139.09,6.44420847]
[1720830740189,45.0,139.12,139.09,6.44420847]
[1720830740381,56.56,139.12,139.11,6.44420847]
[1720830740581,76.56,139.12,139.11,6.44420847]
[1720830740795,76.56,139.12,139.09,6.44420847]
[1720830741881,7.49408585,139.15,139.09,11.47680847]
[1720830742094,11.56,139.13,139.09,11.47680847]
[1720830742679,11.56,139.13,139.09,6.44420847]
[1720830743203,11.56,139.13,139.11,6.44420847]
[1720830743585,45.0,139.14,139.11,6.44420847]
[1720830743793,11.56,139.13,139.11,6.44420847]
[1720830744910,7.49408585,139.15,139.11,6.44420847]
[1720830745076,20.0,139.14,139.11,6.44420847]
[1720830745999,23.82361988,139.18,139.11,11.47600847]
[1720830746197,11.56,139.15,139.11,6.44420847]
[1720830746499,11.56,139.15,139.13,6.44420847]
[1720830748785,11.56,139.16,139.13,6.44420847]
[1720830748990,11.56,139.15,139.13,6.44420847]
[1720830750289,11.56,139.14,139.13,6.44420847]
[1720830751002,56.56,139.14,139.1,22.00710847]
[1720830751304,11.56,139.13,139.1,6.44420847]
[1720830751503,11.56,139.12,139.1,6.44420847]
[1720830751699,11.56,139.12,139.08,6.44420847]
[1720830751700,11.56,139.11,139.08,6.44420847]
[1720830752210,11.56,139.1,139.08,6.44420847]
[1720830752912,45.0,139.12,139.08,6.44420847]
[1720830753093,11.56,139.1,139.08,6.44420847]
[1720830753292,10.0,139.12,139.08,6.44420847]
[1720830753293,56.56,139.09,139.08,6.44420847]
[1720830754498,45.0,139.09,139.08,6.44420847]
[1720830754700,56.56,139.09,139.08,6.44420847]
[1720830755303,45.0,139.09,139.08,6.44420847]
[1720830756211,10.0,139.12,139.08,6.44420847]
[1720830756511,65.0,139.11,139.1,6.44420847]
[1720830756711,76.56,139.11,139.1,6.44420847]
[1720830757716,65.0,139.11,139.1,6.44420847]
[1720830758010,76.56,139.11,139.08,6.44420847]
[1720830758213,11.56,139.1,139.08,6.44420847]
[1720830759912,18.4786733,139.15,139.08,6.44420847]
[1720830760115,11.56,139.12,139.08,11.47700847]
[1720830760315,11.56,139.12,139.08,6.44420847]
[1720830760613,56.56,139.11,139.08,6.44420847]
[1720830761320,45.0,139.11,139.1,6.44420847]
[1720830761500,15.587,139.15,139.1,6.44420847]
[1720830761703,11.56,139.12,139.1,6.44420847]
[1720830762217,11.56,139.11,139.1,6.44420847]
[1720830762418,56.56,139.11,139.1,6.44420847]
[1720830763319,45.0,139.11,139.1,6.44420847]
[1720830763506,10.0,139.14,139.1,6.44420847]
[1720830763507,15.587,139.15,139.1,6.44420847]
[1720830763712,11.56,139.12,139.1,6.44420847]
[1720830764217,45.0,139.14,139.1,6.44420847]
[1720830764426,31.56,139.13,139.1,6.44420847]
[1720830765006,31.56,139.13,139.12,6.44420847]
[1720830765223,76.56,139.13,139.1,6.44420847]
[1720830765519,31.56,139.13,139.1,6.44420847]
[1720830768220,31.56,139.13,139.12,6.44420847]
[1720830768416,76.56,139.13,139.12,6.44420847]
[1720830770631,76.56,139.13,139.1,6.44420847]
[1720830770832,11.56,139.11,139.1,6.44420847]
[1720830772427,56.56,139.11,139.1,6.44420847]
[1720830774935,11.56,139.12,139.1,6.44420847]
[1720830775133,11.56,139.11,139.1,6.44420847]
[1720830776007,11.56,139.12,139.1,6.44420847]
[1720830781329,11.56,139.11,139.1,6.44420847]
[1720830782038,20.0,139.13,139.1,6.44420847]
[1720830782231,56.56,139.12,139.1,6.44420847]
[1720830782435,45.0,139.12,139.1,6.44420847]
[1720830782636,31.56,139.13,139.1,6.44420847]
[1720830784040,27.9969733,139.18,139.12,6.44420847]
[1720830784241,11.56,139.15,139.14,6.44420847]
[1720830784540,20.0,139.15,139.12,6.44420847]
[1720830785040,20.0,139.15,139.14,6.44420847]
[1720830785536,65.0,139.15,139.14,6.44420847]
[1720830785838,76.56,139.15,139.14,6.44420847]
[1720830786540,2.8916733,139.18,139.14,6.44420847]
[1720830786740,31.56,139.18,139.14,6.44420847]
[1720830787042,20.0,139.18,139.14,6.44420847]
[1720830787343,11.56,139.17,139.16,6.44420847]
[1720830787921,20.0,139.19,139.16,6.44420847]
[1720830788122,45.0,139.18,139.16,6.44420847]
[1720830788323,11.56,139.17,139.16,6.44420847]
[1720830789647,56.56,139.17,139.16,6.44420847]
[1720830790031,56.56,139.17,139.14,6.44420847]
[1720830790343,11.56,139.15,139.14,6.44420847]
[1720830791749,11.56,139.15,139.12,6.44420847]
[1720830791948,11.56,139.13,139.12,6.44420847]
[1720830793543,52.5002824,139.17,139.12,6.44420847]
[1720830793544,11.56,139.14,139.12,6.44420847]
[1720830794323,45.0,139.17,139.12,6.44420847]
[1720830794531,11.56,139.14,139.12,6.44420847]
[1720830794727,11.56,139.14,139.12,11.47580847]
[1720830795448,11.56,139.15,139.14,6.44420847]
[1720830795652,56.56,139.15,139.14,6.44420847]
[1720830796457,11.56,139.15,139.14,6.44420847]
[1720830801153,17.4910233,139.19,139.16,6.44420847]
[1720830801355,11.56,139.17,139.16,6.44420847]
[1720830801659,76.56,139.17,139.16,6.44420847]
[1720830802655,65.0,139.17,139.16,6.44420847]
[1720830802857,76.56,139.17,139.16,6.44420847]
[1720830803063,76.56,139.17,139.14,6.44420847]
[1720830803358,20.0,139.16,139.14,6.44420847]
[1720830805456,11.56,139.17,139.16,6.44420847]
[1720830805756,31.56,139.17,139.16,6.44420847]
[1720830806132,76.56,139.17,139.16,6.44420847]
[1720830808072,31.56,139.17,139.16,6.44420847]
[1720830808541,20.0,139.17,139.16,6.44420847]
[1720830808754,17.00309756,139.21,139.16,6.44420847]
[1720830808953,11.56,139.18,139.16,6.44420847]
[1720830810567,45.0,139.2,139.16,6.44420847]
[1720830810753,20.0,139.19,139.16,6.44420847]
[1720830811056,11.56,139.18,139.16,6.44420847]
[1720830812768,11.56,139.17,139.16,6.44420847]
[1720830813749,11.56,139.17,139.14,6.44420847]
[1720830814063,11.56,139.17,139.09,15.724]
[1720830814064,11.56,139.15,139.12,6.44420847]
[1720830814270,11.56,139.14,139.12,6.44420847]
[1720830817970,10.0,139.18,139.15,6.44420847]
[1720830818175,11.56,139.16,139.13,6.44420847]
[1720830818363,11.56,139.14,139.13,6.44420847]
[1720830822380,56.56,139.14,139.13,6.44420847]
[1720830828786,45.0,139.14,139.13,6.44420847]
[1720830828971,56.56,139.14,139.13,6.44420847]
[1720830830979,11.56,139.15,139.13,6.44420847]
[1720830832280,11.56,139.14,139.13,6.44420847]
[1720830833074,11.56,139.15,139.13,6.44420847]
[1720830833794,12.84777675,139.18,139.13,6.44420847]
[1720830833795,11.56,139.16,139.13,6.44420847]
[1720830833970,11.56,139.16,139.15,6.44420847]
[1720830834170,76.56,139.16,139.15,6.44420847]
[1720830837389,76.56,139.16,139.13,6.44420847]
[1720830837571,11.56,139.14,139.13,6.44420847]
[1720830838490,11.56,139.15,139.13,6.44420847]
[1720830839096,45.0,139.16,139.13,6.44420847]
[1720830839297,10.36607131,139.19,139.15,6.44420847]
[1720830839601,11.56,139.17,139.14,6.44420847]
[1720830839792,11.56,139.17,139.16,6.44420847]
[1720830839991,2.8916733,139.19,139.16,6.44420847]
[1720830840296,11.56,139.17,139.16,6.44420847]
[1720830841270,56.56,139.17,139.16,6.44420847]
[1720830841696,56.56,139.17,139.14,6.44420847]
[1720830841898,11.56,139.15,139.14,6.44420847]
[1720830843892,45.0,139.17,139.16,6.44420847]
[1720830844102,56.56,139.17,139.14,6.44420847]
[1720830844277,56.56,139.17,139.16,6.44420847]
[1720830847506,2.8916733,139.19,139.16,6.44420847]
[1720830847713,65.0,139.2,139.18,6.44420847]
[1720830848006,11.56,139.19,139.16,6.44420847]
[1720830848197,76.56,139.18,139.16,6.44420847]
[1720830848395,11.56,139.18,139.16,6.44420847]
[1720830848786,45.0,139.2,139.18,6.44420847]
[1720830848986,11.56,139.19,139.18,6.44420847]
[1720830849194,56.56,139.19,139.16,6.44420847]
[1720830849395,11.56,139.18,139.16,6.44420847]
[1720830850513,45.0,139.2,139.18,6.44420847]
[1720830850695,11.56,139.19,139.18,6.44420847]
[1720830854620,45.0,139.2,139.18,6.44420847]
[1720830854812,2.8916733,139.22,139.18,6.44420847]
[1720830854990,11.56,139.2,139.18,6.44420847]
[1720830855189,11.56,139.2,139.16,11.47420847]
[1720830855509,11.56,139.19,139.16,6.44420847]
[1720830856408,11.56,139.19,139.18,6.44420847]
[1720830856789,2.8916733,139.22,139.18,6.44420847]
[1720830857218,14.4516733,139.22,139.18,6.44420847]
[1720830857508,11.56,139.21,139.18,6.44420847]
[1720830857703,11.56,139.21,139.2,6.44420847]
[1720830857906,31.56,139.21,139.2,6.44420847]
[1720830859817,20.0,139.21,139.2,6.44420847]
[1720830861816,2.79760991,139.26,139.2,6.44420847]
[1720830862023,11.56,139.24,139.2,6.44420847]
[1720830862330,31.56,139.23,139.2,6.44420847]
[1720830862509,20.0,139.22,139.2,6.44420847]
[1720830863200,31.56,139.22,139.2,6.44420847]
[1720830865327,11.56,139.21,139.2,6.44420847]
[1720830865541,31.56,139.21,139.2,6.44420847]
[1720830866411,20.0,139.21,139.2,6.44420847]
[1720830867244,31.56,139.21,139.2,6.44420847]
[1720830874251,20.0,139.21,139.2,6.44420847]
[1720830876731,31.56,139.21,139.2,6.44420847]
[1720830879555,11.56,139.21,139.2,6.44420847]
[1720830879933,11.56,139.22,139.2,6.44420847]
[1720830880540,20.0,139.21,139.2,6.44420847]
[1720830880831,31.56,139.21,139.2,6.44420847]
[1720830881031,20.0,139.21,139.2,6.44420847]
[1720830882328,31.56,139.21,139.2,6.44420847]
[1720830883252,20.0,139.21,139.2,6.44420847]
[1720830892459,20.0,139.21,139.2,22.49120847]
[1720830893075,11.56,139.26,139.2,34.05120847]
[1720830893359,31.56,139.25,139.22,6.44420847]
[1720830893564,20.0,139.25,139.22,6.44420847]
[1720830893864,11.56,139.24,139.22,6.44420847]
[1720830894041,20.0,139.23,139.22,6.44420847]
[1720830895739,10.32564282,139.27,139.22,6.44420847]
[1720830895941,11.56,139.29,139.24,11.56]
[1720830896149,10.0,139.32,139.24,5.0272]
[1720830896150,11.56,139.3,139.24,5.0272]
[1720830896353,11.56,139.3,139.26,6.44420847]
[1720830896746,11.56,139.3,139.28,6.44420847]
[1720830897148,20.0,139.29,139.26,6.44420847]
[1720830897649,11.56,139.3,139.26,6.44420847]
[1720830897650,29.02988592,139.33,139.26,6.44420847]
[1720830897976,11.56,139.31,139.26,34.05120847]
[1720830898353,11.56,139.32,139.28,6.44420847]
[1720830898970,20.0,139.31,139.28,6.44420847]
[1720830899185,65.0,139.31,139.28,6.44420847]
[1720830899477,76.56,139.31,139.28,6.44420847]
[1720830900172,11.56,139.3,139.26,22.49120847]
[1720830900377,20.0,139.29,139.26,6.44420847]
[1720830900564,56.56,139.28,139.26,6.44420847]
[1720830900880,20.0,139.29,139.26,6.44420847]
[1720830900881,11.56,139.27,139.26,6.44420847]
[1720830901081,56.56,139.27,139.26,6.44420847]
[1720830901773,11.56,139.27,139.26,6.44420847]
[1720830902160,20.0,139.29,139.26,6.44420847]
[1720830902366,11.56,139.29,139.26,6.44420847]
[1720830902568,45.0,139.28,139.26,6.44420847]
[1720830902766,56.56,139.28,139.26,6.44420847]
[1720830902960,45.0,139.28,139.26,6.44420847]
[1720830903276,11.56,139.3,139.26,6.44420847]
[1720830903476,76.56,139.29,139.26,6.44420847]
[1720830904188,65.0,139.29,139.26,6.44420847]
[1720830904663,7.43608592,139.33,139.26,6.44420847]
[1720830904866,7.43608592,139.33,139.27,16.586]
[1720830905076,31.56,139.32,139.26,23.03060847]
[1720830905251,11.56,139.31,139.28,6.44420847]
[1720830905462,11.56,139.3,139.26,6.44420847]
[1720830905867,11.56,139.3,139.28,6.44420847]
[1720830906161,20.0,139.32,139.28,6.44420847]
[1720830906371,56.56,139.31,139.28,6.44420847]
[1720830906871,45.0,139.31,139.28,6.44420847]
[1720830907081,56.56,139.31,139.28,6.44420847]
[1720830907561,56.56,139.31,139.26,6.44420847]
[1720830908258,11.56,139.3,139.26,6.44420847]
[1720830908471,56.56,139.31,139.27,5.026]
[1720830908673,56.56,139.31,139.26,11.47060847]
[1720830908876,56.56,139.31,139.27,5.0262]
[1720830909382,56.56,139.31,139.3,6.44420847]
[1720830909553,45.0,139.31,139.3,6.44420847]
[1720830909759,65.0,139.31,139.3,6.44420847]
[1720830911158,65.0,139.31,139.28,6.44420847]
[1720830911381,76.56,139.31,139.28,6.44420847]
[1720830911977,76.56,139.31,139.3,6.44420847]
[1720830912177,7.43608592,139.33,139.28,28.71270847]
[1720830912361,2.8916733,139.36,139.3,23.02900847]
[1720830912566,11.56,139.35,139.3,23.02900847]
[1720830912765,14.4516733,139.36,139.3,23.02900847]
[1720830913183,11.56,139.36,139.33,6.44420847]
[1720830913571,20.0,139.35,139.33,6.44420847]
[1720830913877,7.46249967,139.38,139.35,6.44420847]
[1720830914075,14.4516733,139.39,139.33,18.00420847]
[1720830914283,11.56,139.38,139.33,11.56]
[1720830914482,10.0,139.36,139.31,6.44420847]
[1720830914811,11.56,139.35,139.31,6.44420847]
[1720830915278,10.0,139.38,139.31,18.00420847]
[1720830915490,11.56,139.36,139.32,5.0243]
[1720830915690,11.56,139.36,139.34,6.44420847]
[1720830915866,31.56,139.37,139.34,6.44420847]